fUST/lending_fUST_20241026
["ID","MTS","AMOUNT","RATE_DAILY","PERIOD"]
[340853218,1729941430827,273.37336231,9.9e-05,2]
[340853219,1729941446606,273.37336231,9.9e-05,2]
[340853220,1729941463193,273.37336231,9.9e-05,2]
[340853221,1729941479884,273.37336231,9.9e-05,2]
[340853222,1729941495875,273.37336231,9.9e-05,2]
[340853223,1729941511737,273.37336231,9.9e-05,2]
[340853224,1729941527136,273.37336231,9.9e-05,2]
[340853225,1729941542438,273.37336231,9.9e-05,2]
[340853226,1729941557857,273.37336231,9.9e-05,2]
[340853227,1729941573097,273.37336231,9.9e-05,2]
[340853228,1729941588455,273.37336231,9.9e-05,2]
[340853229,1729941603943,273.37336231,9.9e-05,2]
[340853230,1729941619726,273.37336231,9.9e-05,2]
[340853231,1729941636036,273.37336231,9.9e-05,2]
[340853232,1729941651814,273.37336231,9.9e-05,2]
[340853233,1729941667674,273.37336231,9.9e-05,2]
[340853234,1729941683580,273.37336231,9.9e-05,2]
[340853235,1729941699874,273.37336231,9.9e-05,2]
[340853236,1729941715570,273.37336231,9.9e-05,2]
[340853237,1729941730777,273.37336231,9.9e-05,2]
[340853238,1729941746620,273.37336231,9.9e-05,2]
[340853239,1729941762253,273.37336231,9.9e-05,2]
[340853240,1729941777997,273.37336231,9.9e-05,2]
[340853241,1729941810375,273.37336231,9.9e-05,2]
[340853242,1729941825616,273.37336231,9.9e-05,2]
[340853243,1729941841548,273.37336231,9.9e-05,2]
[340853244,1729941856776,255.80526366,9.9e-05,2]
[340853250,1729941996130,-199.781538,0.00013973,2]
[340853251,1729941996152,-51.62109873,0.00020447,2]
[340853256,1729942147085,-197.98366602,0.00013873,2]
[340853257,1729942198976,622.12946046,0.00034974,30]
[340853269,1729942232119,-148.16043927,0.00020447,2]
[340853270,1729942232131,-158.694669,0.00021256,2]
[340853271,1729942232141,-111.7298621,0.0002159,2]
[340853278,1729942238697,-672.5359194,0.0002159,2]
[340853279,1729942238711,-782.75275474,0.00021817,2]
[340853280,1729942238720,-158.694673,0.0002184,2]
[340853281,1729942238729,-228.903189,0.00021876,2]
[340853282,1729942238740,-191.888541,0.00021918,2]
[340853283,1729942238751,-300.0,0.00021922,2]
[340853284,1729942238763,-300.0,0.00021922,2]
[340853285,1729942238774,-7242.015323,0.00021923,2]
[340853286,1729942238785,-1169.7234015,0.00021989,2]
[340853287,1729942238796,-275.124,0.0002293,2]
[340853288,1729942238806,-191.888541,0.000232,2]
[340853289,1729942238816,-5000.0,0.00023958,2]
[340853290,1729942238826,-5000.0,0.00023959,2]
[340853291,1729942238837,-192.32273427,0.0002396,2]
[340853292,1729942238848,-25920.0503246,0.0002396,2]
[340853293,1729942238861,-155.413,0.0002396,5]
[340853294,1729942238870,-255.16065139,0.00024149,2]
[340853295,1729942238881,-153.0,0.00024164,2]
[340853296,1729942238890,-153.0,0.00024164,2]
[340853297,1729942238899,-153.0,0.00024164,2]
[340853298,1729942238910,-150.0,0.000242,2]
[340853299,1729942238920,-150.0,0.000243,2]
[340853300,1729942238930,-191.888541,0.00024482,2]
[340853301,1729942238939,-5000.0,0.00024599,2]
[340853302,1729942238948,-2004.0,0.000246,2]
[340853303,1729942238959,-4511.38,0.0002467,10]
[340853304,1729942238969,-3759.48,0.0002467,10]
[340853305,1729942238978,-186.537676,0.0002468,7]
[340853306,1729942238989,-286.41861053,0.0002468,3]
[340853307,1729942238998,-69568.8318214,0.0002468,3]
[340853308,1729942239008,-5000.0,0.00024687,2]
[340853309,1729942239017,-500.0,0.00024687,2]
[340853310,1729942239027,-161.46157023,0.00024687,2]
[340853311,1729942239038,-500.0,0.00024687,2]
[340853312,1729942239047,-500.0,0.00024687,2]
[340853313,1729942239057,-500.0,0.00024687,2]
[340853314,1729942239066,-234.22780367,0.00024687,2]
[340853315,1729942239075,-500.0,0.00024687,2]
[340853316,1729942239087,-151.0,0.00024688,7]
[340853317,1729942239097,-286.41861053,0.00024688,3]
[340853318,1729942239107,-69568.8318214,0.00024688,3]
[340853319,1729942239116,-3696.99137095,0.00024698,2]
[340853378,1729943321253,205.06170706,9.9e-05,2]
[340853379,1729943365280,-189.904592,0.00013973,2]
[340853390,1729943432222,-189.904592,0.00020447,2]
[340853391,1729943432234,-3000.0,0.00021656,2]
[340853392,1729943432246,-289.53614722,0.00022522,2]
[340853393,1729943432257,-203.0755485,0.00022623,2]
[340853394,1729943432269,-250.0,0.0002268,2]
[340853395,1729943432280,-300.0,0.00022776,2]
[340853396,1729943432291,-300.0,0.00022776,2]
[340853397,1729943432302,-9257.95641068,0.00022777,2]
[340853398,1729943432317,-964.13834818,0.00022777,2]
[340853399,1729943432337,-1721.94311532,0.00022777,2]
[340853403,1729943438626,-496.30454032,0.00022777,2]
[340853404,1729943438638,-289.53614721,0.000231,2]
[340853405,1729943438649,-289.53614721,0.00023678,2]
[340853406,1729943438659,-15.58270226,0.00023778,2]
[340853491,1729943493332,30.00477305,0.00013873,2]
[340853492,1729943983978,163.55817668,0.00014,120]
[340853494,1729944621757,5061.0,0.00034966,30]
[340853499,1729944632436,-190.346272,0.00013973,2]
[340853500,1729944632447,-190.346272,0.00020447,2]
[340853501,1729944632457,-1114.79345876,0.00022,2]
[340853502,1729944632467,-3000.0,0.00022718,2]
[340853503,1729944632476,-158.694669,0.00022793,2]
[340853504,1729944632486,-250.0,0.00022937,2]
[340853505,1729944632495,-161.623514,0.00023069,2]
[340853506,1729944632505,-388.5483638,0.000231,2]
[340853507,1729944632528,-308.4491582,0.00023103,2]
[340853508,1729944632539,-153.0,0.00023256,2]
[340853509,1729944632550,-300.0,0.00023299,2]
[340853510,1729944632560,-299.87192423,0.00023299,2]
[340853526,1729944638731,-0.12807577,0.00023299,2]
[340853527,1729944638740,-302.6239726,0.000233,2]
[340853528,1729944638750,-153.0,0.000233,2]
[340853529,1729944638759,-302.6239726,0.000233,2]
[340853530,1729944638769,-290.4172977,0.000233,2]
[340853531,1729944638778,-302.6239726,0.000233,2]
[340853532,1729944638788,-302.6239726,0.000233,2]
[340853533,1729944638798,-302.6239726,0.000233,2]
[340853534,1729944638807,-161.623514,0.00023309,2]
[340853535,1729944638816,-161.623514,0.0002355,2]
[340853536,1729944638825,-262.089,0.0002376,2]
[340853537,1729944638835,-161.623514,0.0002379,2]
[340853538,1729944638845,-163.7719863,0.000238,2]
[340853539,1729944638855,-379.9324525,0.00023925,2]
[340853540,1729944638864,-302.6239726,0.00023925,2]
[340853541,1729944638874,-302.6239726,0.00023925,2]
[340853542,1729944638884,-153.0,0.00023941,2]
[340853543,1729944638893,-153.0,0.00023941,2]
[340853544,1729944638902,-153.0,0.00023941,2]
[340853545,1729944638911,-302.6239726,0.00023941,2]
[340853546,1729944638922,-302.6239726,0.00023941,2]
[340853547,1729944638933,-302.6239726,0.00023941,2]
[340853548,1729944638943,-302.6239726,0.00023941,2]
[340853549,1729944638953,-106.82777343,0.00023941,2]
[340853613,1729944900688,273.37336231,9.9e-05,2]
[340853614,1729944909074,273.37336231,9.9e-05,2]
[340853615,1729944917712,273.37336231,9.9e-05,2]
[340853616,1729944925483,273.37336231,9.9e-05,2]
[340853617,1729944933721,273.37336231,9.9e-05,2]
[340853618,1729944949660,273.37336231,9.9e-05,2]
[340853619,1729944957406,273.37336231,9.9e-05,2]
[340853620,1729944965483,273.37336231,9.9e-05,2]
[340853621,1729944973263,273.37336231,9.9e-05,2]
[340853622,1729944981955,273.37336231,9.9e-05,2]
[340853623,1729944990347,273.37336231,9.9e-05,2]
[340853624,1729944999021,273.37336231,9.9e-05,2]
[340853625,1729945006866,273.37336231,9.9e-05,2]
[340853626,1729945015417,273.37336231,9.9e-05,2]
[340853627,1729945023758,273.37336231,9.9e-05,2]
[340853628,1729945032564,273.37336231,9.9e-05,2]
[340853629,1729945040338,273.37336231,9.9e-05,2]
[340853630,1729945048455,273.37336231,9.9e-05,2]
[340853631,1729945057823,273.37336231,9.9e-05,2]
[340853632,1729945065842,273.37336231,9.9e-05,2]
[340853633,1729945074231,273.37336231,9.9e-05,2]
[340853634,1729945082680,273.37336231,9.9e-05,2]
[340853635,1729945090979,273.37336231,9.9e-05,2]
[340853636,1729945103522,273.37336231,9.9e-05,2]
[340853637,1729945112587,273.37336231,9.9e-05,2]
[340853638,1729945120413,273.37336231,9.9e-05,2]
[340853639,1729945129559,273.37336231,9.9e-05,2]
[340853640,1729945137371,273.37336231,9.9e-05,2]
[340853641,1729945145499,273.37336231,9.9e-05,2]
[340853642,1729945154054,273.37336231,9.9e-05,2]
[340853643,1729945162658,273.37336231,9.9e-05,2]
[340853644,1729945171005,273.37336231,9.9e-05,2]
[340853645,1729945179059,273.37336231,9.9e-05,2]
[340853646,1729945186883,273.37336231,9.9e-05,2]
[340853647,1729945195412,273.37336231,9.9e-05,2]
[340853648,1729945203314,273.37336231,9.9e-05,2]
[340853649,1729945212529,273.37336231,9.9e-05,2]
[340853650,1729945221089,273.37336231,9.9e-05,2]
[340853651,1729945229878,273.37336231,9.9e-05,2]
[340853652,1729945238345,273.37336231,9.9e-05,2]
[340853653,1729945247434,273.37336231,9.9e-05,2]
[340853654,1729945255936,273.37336231,9.9e-05,2]
[340853655,1729945263758,273.37336231,9.9e-05,2]
[340853656,1729945271573,273.37336231,9.9e-05,2]
[340853657,1729945280155,273.37336231,9.9e-05,2]
[340853658,1729945288535,273.37336231,9.9e-05,2]
[340853659,1729945296613,273.37336231,9.9e-05,2]
[340853661,1729945304433,273.37336231,9.9e-05,2]
[340853662,1729945312543,273.37336231,9.9e-05,2]
[340853663,1729945320373,273.37336231,9.9e-05,2]
[340853664,1729945329012,273.37336231,9.9e-05,2]
[340853665,1729945336863,273.37336231,9.9e-05,2]
[340853666,1729945345123,273.37336231,9.9e-05,2]
[340853667,1729945352717,273.37336231,9.9e-05,2]
[340853668,1729945361624,273.37336231,9.9e-05,2]
[340853669,1729945369732,273.37336231,9.9e-05,2]
[340853670,1729945377849,273.37336231,9.9e-05,2]
[340853671,1729945385606,273.37336231,9.9e-05,2]
[340853672,1729945394551,273.37336231,9.9e-05,2]
[340853673,1729945402872,273.37336231,9.9e-05,2]
[340853674,1729945410935,273.37336231,9.9e-05,2]
[340853675,1729945418883,273.37336231,9.9e-05,2]
[340853676,1729945426766,273.37336231,9.9e-05,2]
[340853677,1729945434639,273.37336231,9.9e-05,2]
[340853678,1729945442782,273.37336231,9.9e-05,2]
[340853679,1729945450611,273.37336231,9.9e-05,2]
[340853680,1729945458682,273.37336231,9.9e-05,2]
[340853681,1729945466650,273.37336231,9.9e-05,2]
[340853682,1729945475354,273.37336231,9.9e-05,2]
[340853683,1729945483846,273.37336231,9.9e-05,2]
[340853684,1729945491764,273.37336231,9.9e-05,2]
[340853685,1729945500099,273.37336231,9.9e-05,2]
[340853688,1729945515312,273.37336231,9.9e-05,2]
[340853689,1729945530509,273.37336231,9.9e-05,2]
[340853690,1729945546500,273.37336231,9.9e-05,2]
[340853692,1729945561731,273.37336231,9.9e-05,2]
[340853693,1729945577940,273.37336231,9.9e-05,2]
[340853694,1729945593283,273.37336231,9.9e-05,2]
[340853695,1729945608461,273.37336231,9.9e-05,2]
[340853696,1729945624120,273.37336231,9.9e-05,2]
[340853697,1729945639315,273.37336231,9.9e-05,2]
[340853698,1729945654577,273.37336231,9.9e-05,2]
[340853699,1729945670013,273.37336231,9.9e-05,2]
[340853700,1729945685273,273.37336231,9.9e-05,2]
[340853702,1729945700601,273.37336231,9.9e-05,2]
[340853703,1729945738674,273.37336231,9.9e-05,2]
[340853704,1729945754655,273.37336231,9.9e-05,2]
[340853705,1729945769870,273.37336231,9.9e-05,2]
[340853706,1729945771106,-182.1227473,0.00013973,2]
[340853707,1729945771127,-13.66315994,0.00013973,2]
[340853727,1729945832550,-157.64848406,0.00013973,2]
[340853728,1729945832562,-171.311644,0.00020447,2]
[340853729,1729945832574,-171.04641678,0.00021904,2]
[340853730,1729945834303,273.37336231,9.9e-05,2]
[340853762,1729945838737,-517.6807511,0.00021904,2]
[340854435,1729945849572,273.37336231,9.9e-05,2]
[340854437,1729945865953,273.37336231,9.9e-05,2]
[340854438,1729945881816,273.37336231,9.9e-05,2]
[340854439,1729945897651,273.37336231,9.9e-05,2]
[340854491,1729947031789,-216.762695,0.00013973,2]
[340854493,1729947031799,-137.67026837,0.00013973,2]
[340854578,1729947037909,-26.17687763,0.00013973,2]
[340854580,1729947037920,-191.6644339,0.00019178,2]
[340854582,1729947037931,-921.18043111,0.0002,2]
[340854584,1729947037942,-153.93576,0.0002002,2]
[340854884,1729947042944,-228.39294204,0.0002002,2]
[340854894,1729947343955,3000.0,0.00034969,30]
[340854895,1729947371300,1000.0,0.00034969,30]
[340854896,1729947374775,1000.0,0.00034969,30]
[340854897,1729947399571,1000.0,0.00034969,30]
[340854898,1729947402219,1000.0,0.00034969,30]
[340854899,1729947404266,1000.0,0.00034969,30]
[340854900,1729947423903,500.0,0.00034969,30]
[340854901,1729947425592,500.0,0.00034969,30]
[340854902,1729947427033,500.0,0.00034969,30]
[340854903,1729947428246,500.0,0.00034969,30]
[340854904,1729947429334,500.0,0.00034969,30]
[340854905,1729947430154,500.0,0.00034969,30]
[340854906,1729947431092,500.0,0.00034969,30]
[340854907,1729947432432,500.0,0.00034969,30]
[340854908,1729947433416,500.0,0.00034969,30]
[340854909,1729947535013,500.0,0.0003497,30]
[340854910,1729947724370,1000.0,0.0003497,30]
[340854911,1729947777296,1000.0,0.0003497,30]
[340854912,1729947865444,1000.0,0.00034971,30]
[340854913,1729947867450,1000.0,0.00034971,30]
[340854914,1729947869371,1000.0,0.00034971,30]
[340854915,1729947892697,1000.0,0.00034971,30]
[340854916,1729948150633,-188.788425,0.00013973,2]
[340854917,1729948150659,-300.0,0.00016498,2]
[340854918,1729948150682,-300.0,0.00016498,2]
[340854919,1729948150705,-6502.04662631,0.00016499,2]
[340854980,1729948238532,-300.0,0.00016498,2]
[340854981,1729948238541,-200.0,0.00016498,2]
[340854982,1729948238551,-18397.95337369,0.00016499,2]
[340854983,1729948238560,-167.229291,0.00016916,2]
[340854984,1729948238569,-167.229291,0.00016984,2]
[340854985,1729948238578,-167.229291,0.00017052,2]
[340854986,1729948238588,-167.229291,0.0001712,2]
[340854987,1729948238597,-167.229291,0.00017188,2]
[340854988,1729948238607,-167.229291,0.00017255,2]
[340854989,1729948238615,-167.229291,0.00017323,2]
[340854990,1729948238625,-167.229291,0.00017391,2]
[340854991,1729948238634,-167.229291,0.00017459,2]
[340854992,1729948238644,-167.229291,0.00017527,2]
[340854993,1729948238653,-3000.0,0.00017575,2]
[340854994,1729948238662,-167.229291,0.00017594,2]
[340854995,1729948238671,-167.229291,0.00017662,2]
[340854996,1729948238680,-167.229291,0.0001773,2]
[340854997,1729948238689,-167.229291,0.00017798,2]
[340854998,1729948238699,-151.0,0.00017843,2]
[340854999,1729948238709,-151.0,0.00017844,2]
[340855000,1729948238718,-260.0,0.000179,2]
[340855001,1729948238729,-168.0,0.000179,2]
[340855002,1729948238739,-160.0,0.000179,2]
[340855003,1729948238748,-160.0,0.000179,2]
[340855004,1729948238757,-160.0,0.000179,2]
[340855005,1729948238766,-160.0,0.000179,2]
[340855006,1729948238778,-260.0,0.000179,2]
[340855007,1729948238787,-151.0,0.000179,2]
[340855008,1729948238798,-270.767307,0.000179,2]
[340855009,1729948238809,-160.0,0.000179,2]
[340855010,1729948238822,-500.0,0.000179,2]
[340855011,1729948238833,-302.05936685,0.000179,2]
[340855012,1729948238843,-168.8703818,0.000179,2]
[340855133,1729948241492,-68.6296182,0.000179,2]
[340855134,1729948241503,-320.0877547,0.000179,2]
[340855135,1729948241514,-160.94951642,0.000179,2]
[340855136,1729948241524,-160.0,0.000179,2]
[340855137,1729948241536,-500.0,0.000179,2]
[340855138,1729948241546,-500.0,0.000179,2]
[340855139,1729948241556,-500.0,0.000179,2]
[340855140,1729948241566,-160.0,0.000179,2]
[340855141,1729948241576,-160.0,0.000179,2]
[340855142,1729948241588,-485.39248746,0.000179,2]
[340855143,1729948241600,-500.0,0.000179,2]
[340855144,1729948241611,-500.0,0.000179,2]
[340855145,1729948241620,-327.60949013,0.000179,2]
[340855146,1729948241632,-420.0,0.00018148,2]
[340855147,1729948241643,-158.694669,0.00019178,2]
[340855148,1729948241654,-1000.0,0.0001927,2]
[340855149,1729948241664,-8319.74818958,0.00019784,2]
[340855150,1729948241675,-167.0,0.00019963,2]
[340855151,1729948241685,-188.788425,0.00020447,2]
[340855152,1729948241698,-195.7961992,0.00020654,2]
[340855153,1729948241710,-302.6239726,0.00020654,2]
[340855154,1729948241721,-1500.0,0.00021273,2]
[340855155,1729948241731,-153.0,0.0002149,2]
[340855156,1729948241740,-5000.0,0.00021917,2]
[340855157,1729948241750,-5000.0,0.00021917,2]
[340855158,1729948241761,-5000.0,0.00021917,2]
[340855159,1729948241770,-385.1401021,0.00022685,2]
[340855160,1729948241779,-153.0,0.00023109,2]
[340855161,1729948241794,-302.6239726,0.00023109,2]
[340855162,1729948241804,-302.6239726,0.00023109,2]
[340855163,1729948241813,-454.4228284,0.00023109,2]
[340855164,1729948241823,-153.0,0.00023109,2]
[340855165,1729948241832,-153.0,0.00023109,2]
[340855166,1729948241842,-153.0,0.00023109,2]
[340855167,1729948241851,-527.0,0.00023385,2]
[340855168,1729948241860,-1151.0,0.00023385,2]
[340855169,1729948241870,-2396.0,0.00023385,2]
[340855170,1729948241880,-155.41471499,0.00023478,4]
[340855171,1729948241889,-153.0,0.00023589,2]
[340855172,1729948241899,-2000.0,0.00023614,2]
[340855173,1729948241908,-260.13,0.0002376,2]
[340855174,1729948241919,-260.0,0.000239,2]
[340855175,1729948241929,-1000.0,0.00024,120]
[340855176,1729948241938,-151.0,0.00024383,2]
[340855177,1729948241948,-257.77674947,0.00024579,3]
[340855178,1729948241959,-13632.93143619,0.00024579,3]
[340855179,1729948241974,-329.9293706,0.00024579,3]
[340855180,1729948241987,-1110.15611349,0.00024579,3]
[340855182,1729948242937,-1715.27267603,0.00024579,3]
[340855183,1729948242995,-1456.03829973,0.00024579,3]
[340855186,1729948292155,4500.98000001,0.00034971,30]
[340855188,1729948629495,-343.99,0.000249,14]
[340855189,1729948629518,-62.568063,0.000249,14]
[340855190,1729948939585,1000.0,0.00024,120]
[340855192,1729948973676,1000.0,0.00024,7]
[340855193,1729949010860,192.9409,0.00024657,7]
[340855243,1729949438159,-214.22650543,0.000123,2]
[340855246,1729949438172,-169.909582,0.00013973,2]
[340855248,1729949438182,-568.72215061,0.00016299,2]
[340855250,1729949438192,-169.909582,0.00020447,2]
[340855252,1729949438204,-300.0,0.00022066,2]
[340855254,1729949438214,-24900.0,0.00022067,2]
[340855256,1729949438224,-3000.0,0.0002214,2]
[340855259,1729949438238,-1240.60825625,0.00022825,2]
[340855261,1729949438248,-353.09843087,0.00022852,2]
[340855263,1729949438259,-5000.0,0.00022906,2]
[340855265,1729949438270,-383.57008471,0.00022906,2]
[340855267,1729949438279,-169.301387,0.00022925,2]
[340855269,1729949438289,-501.66752118,0.00023,2]
[340855271,1729949438299,-500.0,0.00023,2]
[340855273,1729949438313,-169.301387,0.00023034,2]
[340855275,1729949438323,-169.301387,0.00023143,2]
[340855276,1729949438332,-169.301387,0.00023251,2]
[340855277,1729949438342,-530.179,0.00023354,2]
[340855278,1729949438351,-1153.0,0.00023354,2]
[340855279,1729949438360,-2396.0,0.00023354,2]
[340855280,1729949438369,-169.301387,0.0002336,2]
[340855281,1729949438379,-169.301387,0.00023468,2]
[340855282,1729949438388,-5000.0,0.00023553,2]
[340855283,1729949438397,-169.301387,0.00023577,2]
[340855284,1729949438407,-169.301387,0.00023686,2]
[340855285,1729949438417,-607.89362525,0.0002371,2]
[340855286,1729949438426,-153.0,0.00023753,2]
[340855287,1729949438436,-302.6239726,0.00023753,2]
[340855288,1729949438445,-153.0,0.00023753,2]
[340855289,1729949438454,-153.0,0.00023753,2]
[340855290,1729949438464,-302.6239726,0.00023753,2]
[340855291,1729949438473,-153.0,0.00023753,2]
[340855292,1729949438483,-454.4228284,0.00023753,2]
[340855293,1729949438492,-153.0,0.00023753,2]
[340855294,1729949438502,-385.1401021,0.00023753,2]
[340855295,1729949438511,-278.103,0.0002376,2]
[340855296,1729949438520,-169.301387,0.00023794,2]
[340855297,1729949438529,-169.301387,0.00023903,2]
[340855298,1729949438539,-420.0,0.00023977,2]
[340855299,1729949438549,-169.301387,0.00024011,2]
[340855300,1729949438558,-153.0,0.00024027,2]
[340855301,1729949438568,-155.41471499,0.00024101,6]
[340855302,1729949438577,-169.301387,0.0002412,2]
[340855303,1729949438586,-1000.0,0.0002437,2]
[340855304,1729949438596,-151.0,0.00024378,2]
[340855305,1729949438606,-150.73668543,0.00024382,2]
[340855306,1729949438616,-297.84619223,0.00024382,2]
[340855307,1729949438625,-5000.0,0.00024576,2]
[340855308,1729949438635,-1000.0,0.00024588,2]
[340855309,1729949438645,-260.0,0.000246,2]
[340855310,1729949438654,-28306.57013848,0.00024627,3]
[340855311,1729949438733,-223.58825025,0.00024627,3]
[340855312,1729949438750,-669.19392819,0.00024627,3]
[340855313,1729949438767,-886.76204571,0.00024627,3]
[340855539,1729949443224,-34.14191613,0.00020254,2]
[340855546,1729949446207,-1894.80221397,0.00020254,2]
[340855547,1729949446218,-8891.17465365,0.00024187,2]
[340855548,1729949446230,-280.07154641,0.00024535,2]
[340855549,1729949446245,-248.20516019,0.00024599,2]
[340855550,1729949446256,-5806.51399223,0.00024627,3]
[340855553,1729949516523,42218.8,0.0003497,30]
[340855556,1729949606929,180.999999,0.00034965,30]
[340855558,1729949920904,155.222,0.00024615,7]
[340855559,1729949938454,5.06,0.00023,120]
[340855560,1729949938479,240.219037,0.00023,120]
[340855561,1729949938507,9754.720963,0.00023,120]
[340855562,1729949947811,10000.0,0.00022,60]
[340855563,1729949965494,10000.0,0.00023,120]
[340855564,1729949974277,10000.0,0.00022,60]
[340855565,1729949996815,10000.0,0.00022,60]
[340855569,1729950020302,6000.0,0.00022,60]
[340855573,1729950431825,34675.07384479,0.0003497,31]
[340855574,1729950551162,-160.966972,0.00013973,2]
[340855577,1729950607184,160.966972,0.00013973,2]
[340855614,1729950632232,-300.0,0.00021125,2]
[340855615,1729950632243,-300.0,0.00021125,2]
[340855616,1729950632253,-5947.44471098,0.00021126,2]
[340855617,1729950632264,-449.17748,0.00021126,2]
[340855860,1729950640507,-695.50005,0.00021126,2]
[340855863,1729950640522,-17807.87775902,0.00021126,2]
[340855866,1729950640533,-160.966972,0.00021209,2]
[340855870,1729950640544,-3000.0,0.00021362,2]
[340855874,1729950640554,-171.0,0.00022,2]
[340855877,1729950640564,-5000.0,0.00022423,2]
[340855880,1729950640574,-255.71338981,0.00022423,2]
[340855883,1729950640585,-1085.53222421,0.00022501,2]
[340855886,1729950640596,-158.694669,0.00022601,2]
[340855889,1729950640606,-150.94,0.00023521,2]
[340855893,1729950640617,-528.0,0.00023521,2]
[340855895,1729950640626,-2396.0,0.00023521,2]
[340855898,1729950640635,-1150.0,0.00023521,2]
[340855901,1729950640647,-4576.662,0.00024167,2]
[340855905,1729950640658,-5000.0,0.00024367,2]
[340855908,1729950640668,-224.05723716,0.0002448,2]
[340855911,1729950640679,-4374.7195732,0.00024499,2]
[340856217,1729950643301,-625.2804268,0.00024499,2]
[340856219,1729950643312,-1321.7195732,0.000245,4]
[340858524,1729951756164,-195.785929,0.00013973,2]
[340858525,1729951756190,-160.966972,0.00013973,2]
[340858651,1729951838598,-160.966972,0.00022174,2]
[340858653,1729951838608,-2708.12262815,0.00022877,2]
[340859060,1729951846632,-21813.06446755,0.00022877,2]
[340859061,1729951846641,-228.3929421,0.0002311,2]
[340859062,1729951846653,-949.84069621,0.00023421,2]
[340859063,1729951846664,-5000.0,0.00023433,2]
[340859064,1729951846674,-528.0,0.00023521,2]
[340859065,1729951846685,-703.751,0.00023521,2]
[340859066,1729951846697,-243.88170785,0.00023521,2]
[340859067,1729951846708,-265.138,0.0002376,2]
[340859068,1729951846718,-153.0,0.00023852,2]
[340859069,1729951846728,-260.0,0.000239,2]
[340859070,1729951846737,-153.0,0.00024152,2]
[340859071,1729951846747,-5000.0,0.00024499,2]
[340859072,1729951846757,-5000.0,0.00024499,2]
[340859073,1729951846766,-19190.29591578,0.000245,4]
[340859074,1729951846776,-14522.63384206,0.000245,3]
[340859075,1729951846786,-220.14949,0.000245,7]
[340859076,1729951846796,-500.0,0.00024573,2]
[340859077,1729951846805,-500.0,0.00024573,2]
[340859078,1729951846815,-994.90478624,0.00024578,3]
[340859079,1729951846829,-994.90478624,0.00024579,3]
[340859080,1729951846839,-2984.71435872,0.0002458,3]
[340859081,1729951846850,-5000.0,0.00024589,2]
[340859082,1729951846861,-1989.80957248,0.0002459,3]
[340859083,1729951846872,-994.90478624,0.00024593,3]
[340859084,1729951846883,-206.8376335,0.00024599,2]
[340859085,1729951846894,-206.48449629,0.00024599,2]
[340859086,1729951846905,-505.56,0.00024599,2]
[340859087,1729951846915,-500.0,0.00024599,2]
[340859088,1729951846924,-500.0,0.00024599,2]
[340859089,1729951846934,-500.0,0.00024599,2]
[340859090,1729951846944,-500.0,0.00024599,2]
[340859091,1729951846953,-500.0,0.00024599,2]
[340859093,1729951846963,-500.0,0.00024599,2]
[340859095,1729951846972,-500.0,0.00024599,2]
[340859097,1729951846982,-500.0,0.00024599,2]
[340859099,1729951846991,-500.0,0.00024599,2]
[340859101,1729951847002,-500.0,0.00024599,2]
[340859103,1729951847011,-500.0,0.00024599,2]
[340859105,1729951847021,-500.0,0.00024599,2]
[340859107,1729951847031,-500.0,0.00024599,2]
[340859109,1729951847041,-331.6070115,0.00024599,2]
[340859111,1729951847051,-500.0,0.00024599,2]
[340859113,1729951847061,-500.0,0.00024599,2]
[340859115,1729951847071,-500.0,0.00024599,2]
[340859117,1729951847085,-500.0,0.00024599,2]
[340859119,1729951847095,-500.0,0.00024599,2]
[340859121,1729951847105,-500.0,0.00024599,2]